Workbook

Sheet Time Computation
A1: Time Calculator Sheet
A3: (Enter time as hh:mm) | F3: (Enter time as hh:mm)
A4: Total monthly hours | B4: 11.79166667 | E4: Claimed | K4: Possible Overtime | O4: 1.666666667
A5: Weekly hours | B5: =IF(B4=0,"",B4/4) -> 2.947916667 | E5: Day 1 | K5: Week 1 | L5: =IF(F12>O4,F12-O4,"") ->  | M5: =SUM(L5:L6) -> 0
E6: Day 2 | K6: Week 2 | L6: =IF(G12>O4,G12-O4,"") -> 
A7: 30-Day Computation | B7: =B4/30 -> 0.3930555556 | E7: Day 3 | K7: Week 3 | L7: =IF(H12>O4,H12-O4,"") ->  | M7: =SUM(L7:L8) -> 0
A8: Entry for 29 days | B8: =INT(B7*1440)/1440 -> 0.3930555556 | E8: Day 4 | K8: Week 4 | L8: =IF(I12>O4,I12-O4,"") -> 
A9: Entry for 1 day | B9: =B4-(B8*29) -> 0.3930555556 | E9: Day 5
E10: Day 6
A11: 31-Day Computation | B11: =B4/31 -> 0.3803763441 | E11: Day 7 | K11: Grand total
A12: Entry for 30 days | B12: =INT(B11*1440)/1440 -> 0.3798611111 | E12: Total | F12: =SUM(F4:F11) -> 0 | G12: 0 | H12: 0 | I12: 0 | K12: =SUM(F12:I12) -> 0
A13: Entry for 1 day | B13: =B4-(B12*30) -> 0.3958333333
A15: 28- Day Computation | B15: =B4/28 -> 0.4211309524 | E15: =IF(F12=0,"",IF(F12>B5,"Week 1 total exceeds allowable claimed hours","")) -> 
A16: Entry for 27 days | B16: =INT(B15*1440)/1440 -> 0.4208333333 | E16: =IF(G12=0,"",IF(G12>B5,"Week 2 total exceeds allowable claimed hours","")) -> 
A17: Entry for 1 day | B17: =B4-(B16*27) -> 0.4291666667 | E17: =IF(H12=0,"",IF(H12>B5,"Week 3 total exceeds allowable claimed hours","")) -> 
E18: =IF(I12=0,"",IF(I12>B5,"Week 4 total exceeds allowable claimed hours","")) -> 
A20: Enter daily hours
A21: Hours for the workweek | B21: =IF(B20=0,"",B20*7) -> 
A22: Less: Previously claimed hours
A23: Net hours for the workweek | B23: =IF(B21="","",B21-B22) -> 
A24: Actual days worked per week
A25: Work hours per day | B25: =IF(AND(B23="",B24=""),"",B23/B24) -> 

Sheet Printout
A1: Time Calculation
A3: Total monthly hours | B3: ='Time Computation'!B4 -> 11.79166667 | D3: Note:
A4: Weekly hours | B4: ='Time Computation'!B5 -> 2.947916667
D5: • This computation is based on working 7 days/week • A workweek starts on Sunday and ends Saturday
A6: 30-Day Computation
A7: Entry for 1st Day | B7: ='Time Computation'!B9 -> 0.3930555556
A8: Entry for Remaining Days | B8: ='Time Computation'!B8 -> 0.3930555556
A10: 31-Day Computation
A11: Entry for 1st Day | B11: ='Time Computation'!B13 -> 0.3958333333
A12: Entry for Remaining Days | B12: ='Time Computation'!B12 -> 0.3798611111
A14: 28- Day Computation | B14: =B3/28 -> 0.4211309524
A15: Entry for 1st Day | B15: ='Time Computation'!B17 -> 0.4291666667
A16: Entry for Remaining Days | B16: ='Time Computation'!B16 -> 0.4208333333
A18: Instructions:

Sheet Printout (Spanish)
A1: Time Calculation
A3: Horas total por mes | B3: ='Time Computation'!B4 -> 11.79166667 | D3: Note:
A4: Horas por semana | B4: ='Time Computation'!B5 -> 2.947916667
D5: • Esta calculación es para cuando trabaja 7 días por semana • La semana laboral empieza el Domingo y termina el Sábado
A6: Calculación para 30 días
A7: Entrada para Primer Día | B7: ='Time Computation'!B9 -> 0.3930555556
A8: Entrada para Días Restantes | B8: ='Time Computation'!B8 -> 0.3930555556
A10: Calculación para 31 días
A11: Entrada para Primer Día | B11: ='Time Computation'!B13 -> 0.3958333333
A12: Entrada para Días Restantes | B12: ='Time Computation'!B12 -> 0.3798611111
A14: Calculación para 28 días | B14: =B3/28 -> 0.4211309524
A15: Entrada para Primer Día | B15: ='Time Computation'!B17 -> 0.4291666667
A16: Entrada para Días Restantes | B16: ='Time Computation'!B16 -> 0.4208333333
A18: Instrucciones

Sheet Week Day Calculation
A1: Weekday Calculation
A2: (Enter time as hh:mm)
A3: Auth. Hours | B3: 11.79166667
A4: Weekly Hours | B4: =B3/4 -> 2.947916667
A5: Schedule | B5: M-F
A7: Days Worked Each Month | C7: 1 Day | D7: Remaining Days
A8: January | B8: =VLOOKUP($B$5,Year_2017,2,FALSE) -> 23 | C8: =$B$3-(D8*(B8-1)) -> 0.5166666667 | D8: =INT(E8*1440)/1440 -> 0.5125 | E8: =B3/B8 -> 0.5126811594
A9: February | B9: =VLOOKUP($B$5,Year_2017,3,FALSE) -> 20 | C9: =$B$3-(D9*(B9-1)) -> 0.5895833333 | D9: =INT(E9*1440)/1440 -> 0.5895833333 | E9: =B3/B9 -> 0.5895833333
A10: March | B10: =VLOOKUP($B$5,Year_2017,4,FALSE) -> 22 | C10: 0.5479166667 | D10: 0.5354166667 | E10: =B3/B10 -> 0.5359848485
A11: April | B11: =VLOOKUP($B$5,Year_2017,5,FALSE) -> 21 | C11: 0.5694444444 | D11: 0.5611111111 | E11: =B3/B11 -> 0.5615079365
A12: May | B12: =VLOOKUP($B$5,Year_2017,6,FALSE) -> 23 | C12: 0.5166666667 | D12: 0.5125 | E12: =B3/B12 -> 0.5126811594
A13: June | B13: =VLOOKUP($B$5,Year_2017,7,FALSE) -> 21 | C13: 0.5694444444 | D13: 0.5611111111 | E13: =B3/B13 -> 0.5615079365
A14: July | B14: =VLOOKUP($B$5,Year_2017,8,FALSE) -> 22 | C14: 0.5479166667 | D14: 0.5354166667 | E14: =B3/B14 -> 0.5359848485
A15: August | B15: =VLOOKUP($B$5,Year_2017,9,FALSE) -> 23 | C15: 0.5166666667 | D15: 0.5125 | E15: =B3/B15 -> 0.5126811594
A16: September | B16: =VLOOKUP($B$5,Year_2017,10,FALSE) -> 20 | C16: 0.5895833333 | D16: 0.5895833333 | E16: =B3/B16 -> 0.5895833333
A17: October | B17: =VLOOKUP($B$5,Year_2017,11,FALSE) -> 23 | C17: 0.5166666667 | D17: 0.5125 | E17: =B3/B17 -> 0.5126811594
A18: November | B18: =VLOOKUP($B$5,Year_2017,12,FALSE) -> 22 | C18: 0.5479166667 | D18: 0.5354166667 | E18: =B3/B18 -> 0.5359848485
A19: December | B19: =VLOOKUP($B$5,Year_2017,13,FALSE) -> 21 | C19: 0.5694444444 | D19: 0.5611111111 | E19: =B3/B19 -> 0.5615079365

Sheet WD Printout
A1: Entries for IHSS Time Sheet
A3: Please note that the following computation was made based on the information available on the date this was printed. Should your work schedule or hours change please have your hours recalculated to ensure the entries are correct.
A13: Auth. Hours | B13: ='Week Day Calculation'!B3:D3 -> 11.79166667
A14: Weekly Hours | B14: ='Week Day Calculation'!B4:D4 -> 2.947916667
A15: Schedule | B15: ='Week Day Calculation'!B5:D5 -> M-F
A17: Days Worked Each Month | C17: 1st Day | D17: Remaining Days
A18: January | B18: ='Week Day Calculation'!B8 -> 23 | C18: ='Week Day Calculation'!C8 -> 0.5166666667 | D18: ='Week Day Calculation'!D8 -> 0.5125
A19: February | B19: ='Week Day Calculation'!B9 -> 20 | C19: ='Week Day Calculation'!C9 -> 0.5895833333 | D19: ='Week Day Calculation'!D9 -> 0.5895833333
A20: March | B20: ='Week Day Calculation'!B10 -> 22 | C20: ='Week Day Calculation'!C10 -> 0.5479166667 | D20: ='Week Day Calculation'!D10 -> 0.5354166667
A21: April | B21: ='Week Day Calculation'!B11 -> 21 | C21: ='Week Day Calculation'!C11 -> 0.5694444444 | D21: ='Week Day Calculation'!D11 -> 0.5611111111
A22: May | B22: ='Week Day Calculation'!B12 -> 23 | C22: ='Week Day Calculation'!C12 -> 0.5166666667 | D22: ='Week Day Calculation'!D12 -> 0.5125
A23: June | B23: ='Week Day Calculation'!B13 -> 21 | C23: ='Week Day Calculation'!C13 -> 0.5694444444 | D23: ='Week Day Calculation'!D13 -> 0.5611111111
A24: July | B24: ='Week Day Calculation'!B14 -> 22 | C24: ='Week Day Calculation'!C14 -> 0.5479166667 | D24: ='Week Day Calculation'!D14 -> 0.5354166667
A25: August | B25: ='Week Day Calculation'!B15 -> 23 | C25: ='Week Day Calculation'!C15 -> 0.5166666667 | D25: ='Week Day Calculation'!D15 -> 0.5125
A26: September | B26: ='Week Day Calculation'!B16 -> 20 | C26: ='Week Day Calculation'!C16 -> 0.5895833333 | D26: ='Week Day Calculation'!D16 -> 0.5895833333
A27: October | B27: ='Week Day Calculation'!B17 -> 23 | C27: ='Week Day Calculation'!C17 -> 0.5166666667 | D27: ='Week Day Calculation'!D17 -> 0.5125
A28: November | B28: ='Week Day Calculation'!B18 -> 22 | C28: ='Week Day Calculation'!C18 -> 0.5479166667 | D28: ='Week Day Calculation'!D18 -> 0.5354166667
A29: December | B29: ='Week Day Calculation'!B19 -> 21 | C29: ='Week Day Calculation'!C19 -> 0.5694444444 | D29: ='Week Day Calculation'!D19 -> 0.5611111111
A32: Instructions:

Sheet WD Printout SP
A1: Entrada Para IHSS Time Sheet
A3: Tenga en cuenta que el cálculo siguiente se realizó sobre la base de la información disponible en la fecha en que se imprimió. En caso de que su horario de trabajo o las horas cambien, por favor tenga sus horas recalculadas para asegurar que las entradas son correctas
A13: Auth. Hours | B13: ='Week Day Calculation'!B3:D3 -> 11.79166667
A14: Horas por semana | B14: ='Week Day Calculation'!B4:D4 -> 2.947916667
A15: Horario | B15: ='Week Day Calculation'!B5:D5 -> M-F
A17: Días Trabajandos Cada Mes | C17: Primer Dia | D17: Días Resantes
A18: Enero | B18: ='Week Day Calculation'!B8 -> 23 | C18: ='Week Day Calculation'!C8 -> 0.5166666667 | D18: ='Week Day Calculation'!D8 -> 0.5125
A19: Febrero | B19: ='Week Day Calculation'!B9 -> 20 | C19: ='Week Day Calculation'!C9 -> 0.5895833333 | D19: ='Week Day Calculation'!D9 -> 0.5895833333
A20: Marzo | B20: ='Week Day Calculation'!B10 -> 22 | C20: ='Week Day Calculation'!C10 -> 0.5479166667 | D20: ='Week Day Calculation'!D10 -> 0.5354166667
A21: Abril | B21: ='Week Day Calculation'!B11 -> 21 | C21: ='Week Day Calculation'!C11 -> 0.5694444444 | D21: ='Week Day Calculation'!D11 -> 0.5611111111
A22: Mayo | B22: ='Week Day Calculation'!B12 -> 23 | C22: ='Week Day Calculation'!C12 -> 0.5166666667 | D22: ='Week Day Calculation'!D12 -> 0.5125
A23: Junio | B23: ='Week Day Calculation'!B13 -> 21 | C23: ='Week Day Calculation'!C13 -> 0.5694444444 | D23: ='Week Day Calculation'!D13 -> 0.5611111111
A24: Julio | B24: ='Week Day Calculation'!B14 -> 22 | C24: ='Week Day Calculation'!C14 -> 0.5479166667 | D24: ='Week Day Calculation'!D14 -> 0.5354166667
A25: Agosto | B25: ='Week Day Calculation'!B15 -> 23 | C25: ='Week Day Calculation'!C15 -> 0.5166666667 | D25: ='Week Day Calculation'!D15 -> 0.5125
A26: Septiembre | B26: ='Week Day Calculation'!B16 -> 20 | C26: ='Week Day Calculation'!C16 -> 0.5895833333 | D26: ='Week Day Calculation'!D16 -> 0.5895833333
A27: Octubre | B27: ='Week Day Calculation'!B17 -> 23 | C27: ='Week Day Calculation'!C17 -> 0.5166666667 | D27: ='Week Day Calculation'!D17 -> 0.5125
A28: Noviembre | B28: ='Week Day Calculation'!B18 -> 22 | C28: ='Week Day Calculation'!C18 -> 0.5479166667 | D28: ='Week Day Calculation'!D18 -> 0.5354166667
A29: Deciembre | B29: ='Week Day Calculation'!B19 -> 21 | C29: ='Week Day Calculation'!C19 -> 0.5694444444 | D29: ='Week Day Calculation'!D19 -> 0.5611111111
A32: Instrucciones:

Sheet Proration
A1: Total Hours | C1: Enter time as hh:mm
A2: Date out | C2: Date client was out (mm/dd/yy)
A3: Date in | C3: Date client returned (mm/dd/yy)
A4: Days/month | B4: =IF(AND(B2<>0,B3<>0), DAY(DATE(YEAR(B2),MONTH(B2)+1,1)-1), "") -> 
A5: No. of days out | B5: =B3-B2 -> 0
A6: Prorated hours | B6: =IF(B5=0," ",Total_hours-(Total_hours/Days_per_month)*Days_out) -> 

Sheet Days Worked (hidden)
A1: Days Worked Each Month
A2: Month | B2: January | C2: February | D2: March | E2: April | F2: May | G2: June | H2: July | I2: August | J2: September | K2: October | L2: November | M2: December
A3: M-F | B3: 23 | C3: 20 | D3: 22 | E3: 21 | F3: 23 | G3: 21 | H3: 22 | I3: 23 | J3: 20 | K3: 23 | L3: 22 | M3: 21
A4: MWF | B4: 14 | C4: 12 | D4: 13 | E4: 13 | F4: 13 | G4: 13 | H4: 13 | I4: 14 | J4: 12 | K4: 14 | L4: 13 | M4: 13
A5: M-Sat | B5: 27 | C5: 24 | D5: 27 | E5: 25 | F5: 27 | G5: 26 | H5: 26 | I5: 27 | J5: 25 | K5: 27 | L5: 26 | M5: 26
A6: Sun-F | B6: 27 | C6: 24 | D6: 26 | E6: 26 | F6: 27 | G6: 25 | H6: 27 | I6: 27 | J6: 25 | K6: 27 | L6: 26 | M6: 26
A7: Tue,Thu | B7: 9 | C7: 8 | D7: 9 | E7: 8 | F7: 10 | G7: 8 | H7: 9 | I7: 9 | J7: 8 | K7: 9 | L7: 9 | M7: 8
A8: Sat,Sun,Mon | B8: 13 | C8: 12 | D8: 13 | E8: 14 | F8: 12 | G8: 13 | H8: 14 | I8: 12 | J8: 14 | K8: 13 | L8: 12 | M8: 15
A9: Sat&Sun | B9: 8 | C9: 8 | D9: 9 | E9: 9 | F9: 8 | G9: 9 | H9: 9 | I9: 8 | J9: 10 | K9: 8 | L9: 8 | M9: 10
A10: Mo,Th,Fr | B10: 13 | C10: 12 | D10: 14 | E10: 13 | F10: 13 | G10: 13 | H10: 13 | I10: 14 | J10: 12 | K10: 13 | L10: 14 | M10: 13
A11: Tue, Thu, Fri | B11: 13 | C11: 12 | D11: 14 | E11: 12 | F11: 14 | G11: 13 | H11: 13 | I11: 14 | J11: 12 | K11: 13 | L11: 14 | M11: 12
A12: Sat, Mon, Tue | B12: 14 | C12: 12 | D12: 13 | E12: 13 | F12: 13 | G12: 13 | H12: 14 | I12: 12 | J12: 13 | K12: 14 | L12: 12 | M12: 14
A13: Sat, Sun, Wed, Thu | B13: 17 | C13: 15 | D13: 18 | E13: 17 | F13: 18 | G13: 17 | H13: 17 | I13: 18 | J13: 18 | K13: 17 | L13: 17 | M13: 18
A14: Tue, Wed, Thu | B14: 14 | C14: 12 | D14: 13 | E14: 12 | F14: 15 | G14: 12 | H14: 13 | I14: 14 | J14: 12 | K14: 14 | L14: 13 | M14: 12
A15: Tu, We, Th, Sa, Su | B15: 22 | C15: 20 | D15: 22 | E15: 21 | F15: 23 | G15: 21 | H15: 22 | I15: 22 | J15: 22 | K15: 22 | L15: 21 | M15: 22
A16: Fri, Sat, Sun | B16: 12 | C16: 12 | D16: 14 | E16: 12 | F16: 12 | G16: 14 | H16: 13 | I16: 13 | J16: 14 | K16: 12 | L16: 13 | M16: 14
A17: Mo-Thu | B17: 19 | C17: 16 | D17: 17 | E17: 17 | F17: 19 | G17: 16 | H17: 18 | I17: 18 | J17: 16 | K17: 19 | L17: 17 | M17: 17
A18: Mo, Tu, We, Fr | B18: 19 | C18: 16 | D18: 17 | E18: 17 | F18: 18 | G18: 17 | H18: 18 | I18: 18 | J18: 16 | K18: 19 | L18: 17 | M18: 17
A19: M, W, F, Sa | B19: 18 | C19: 16 | D19: 18 | E19: 17 | F19: 17 | G19: 18 | H19: 17 | I19: 18 | J19: 17 | K19: 18 | L19: 17 | M19: 18
A20: Thurs, Sun | B20: 8 | C20: 8 | D20: 9 | E20: 9 | F20: 9 | G20: 8 | H20: 9 | I20: 9 | J20: 9 | K20: 8 | L20: 9 | M20: 9
A21: Thu-Sun | B21: 17 | C21: 16 | D21: 19 | E21: 17 | F21: 17 | G21: 18 | H21: 17 | I21: 18 | J21: 18 | K21: 16 | L21: 18 | M21: 18
